bitfinex/quotes_SOLUSD_20230116
["timestamp","ask_amount","ask_price","bid_price","bid_amount"]
[1673887081493,17.0,23.091,23.086,4.99803]
[1673887081943,17.0,23.091,23.085,17.0]
[1673887083921,17.0,23.091,23.062,109.7261]
[1673887084134,17.0,23.091,23.068,5.00193]
[1673887084461,20.0,23.089,23.068,5.00193]
[1673887084640,20.0,23.089,23.069,20.0]
[1673887084855,20.0,23.089,23.07,5.0015]
[1673887085067,17.0,23.091,23.07,5.0015]
[1673887085801,20.0,23.09,23.07,5.0015]
[1673887086771,20.0,23.09,23.071,17.0]
[1673887087089,20.0,23.09,23.072,5.00106]
[1673887087269,20.0,23.09,23.073,17.0]
[1673887088217,17.0,23.091,23.073,35.43663015]
[1673887088429,17.0,23.091,23.074,20.0]
[1673887088660,17.0,23.091,23.075,22.00041]
[1673887088990,17.0,23.091,23.076,23.43683015]
[1673887089204,17.0,23.091,23.078,20.0]
[1673887089401,22.42537814,23.099,23.079,21.99955]
[1673887089606,22.42537814,23.099,23.08,4.99933]
[1673887089830,22.42537814,23.099,23.081,17.0]
[1673887090020,22.42537814,23.099,23.082,4.9989]
[1673887090230,22.42537814,23.099,23.084,20.0]
[1673887090467,22.42537814,23.099,23.085,21.99825]
[1673887090676,22.42537814,23.099,23.086,4.99803]
[1673887090865,22.42537814,23.099,23.087,37.0]
[1673887091068,22.42537814,23.099,23.088,4.9976]
[1673887091280,22.42537814,23.099,23.089,17.0]
[1673887091491,22.42537814,23.099,23.09,4.99716]
[1673887091701,22.42537814,23.099,23.091,17.0]
[1673887091930,22.42537814,23.099,23.092,4.99673]
[1673887092143,22.42537814,23.099,23.093,17.0]
[1673887092352,22.42537814,23.099,23.093,21.99651]
[1673887092570,22.42537814,23.099,23.093,40.43314015]
[1673887094118,11.42537814,23.099,23.094,24.9963]
[1673887094327,11.42537814,23.099,23.095,4.99608]
[1673887094971,90.07958773,23.107,23.096,20.0]
[1673887095190,90.07958773,23.107,23.098,20.0]
[1673887095377,90.07958773,23.107,23.099,4.99522]
[1673887096225,90.07958773,23.107,23.1,17.0]
[1673887096440,90.07958773,23.107,23.101,4.99478]
[1673887096662,90.07958773,23.107,23.102,17.0]
[1673887097503,90.07958773,23.107,23.103,4.99435]
[1673887097719,90.07958773,23.107,23.104,17.0]
[1673887097927,90.07958773,23.107,23.104,21.99414]
[1673887099063,90.07958773,23.107,23.105,20.0]
[1673887099266,90.07958773,23.107,23.106,17.0]
[1673887099918,90.07958773,23.107,23.105,17.0]
[1673887100258,90.07958773,23.107,23.106,4.9937]
[1673887101494,90.07958773,23.107,23.106,21.9937]
[1673887104655,90.07958773,23.107,23.106,4.9937]
[1673887104868,90.07958773,23.107,23.09,20.0]
[1673887105070,90.07958773,23.107,23.091,18.43663015]
[1673887105071,20.0,23.106,23.091,18.43663015]
[1673887105905,20.0,23.106,23.091,36.14111624]
[1673887106219,52.48,23.106,23.086,18.43663015]
[1673887106441,32.48,23.106,23.087,20.0]
[1673887106659,90.07958773,23.107,23.087,56.14111624]
[1673887106868,90.07958773,23.107,23.088,50.86837105]
[1673887107186,90.07958773,23.107,23.089,130.60773165]
[1673887107404,90.07958773,23.107,23.09,17.0]
[1673887107712,90.07958773,23.107,23.091,43.25]
[1673887107897,90.07958773,23.107,23.094,63.25]
[1673887108113,90.07958773,23.107,23.095,17.0]
[1673887108447,90.07958773,23.107,23.096,20.0]
[1673887108638,90.07958773,23.107,23.097,17.0]
[1673887108849,90.07958773,23.107,23.098,20.0]
[1673887109066,90.07958773,23.107,23.099,17.0]
[1673887109602,79.07958773,23.107,23.099,17.0]
[1673887109815,79.07958773,23.107,23.1,42.03487451]
[1673887110127,79.07958773,23.107,23.101,59.7393606]
[1673887110334,79.07958773,23.107,23.101,78.17599075]
[1673887110546,79.07958773,23.107,23.102,78.17599075]
[1673887111087,79.07958773,23.107,23.103,18.43663015]
[1673887111805,79.07958773,23.107,23.104,17.0]
[1673887112237,79.07958773,23.107,23.105,18.43663015]
[1673887112424,79.07958773,23.107,23.106,17.0]
[1673887112846,79.07958773,23.107,23.106,35.43663015]
[1673887113066,68.07958773,23.107,23.106,35.43663015]
[1673887114531,57.07958773,23.107,23.106,35.43663015]
[1673887114745,44.89164532,23.112,23.109,10.21930781]
[1673887114970,224.66380791,23.116,23.11,20.0]
[1673887115184,224.66380791,23.116,23.11,120.32261395]
[1673887115394,181.33380791,23.116,23.111,100.32261395]
[1673887115714,195.82500846,23.117,23.116,230.23677102]
[1673887115901,63.86564215,23.117,23.116,295.28655115]
[1673887116108,269.10481477,23.137,23.119,2.70577838]
[1673887116338,269.10481477,23.137,23.12,20.02002381]
[1673887116555,269.10481477,23.137,23.121,20.02002381]
[1673887116755,269.10481477,23.137,23.124,89.53797088]
[1673887116952,269.10481477,23.137,23.124,20.02002381]
[1673887117169,269.10481477,23.137,23.124,35.43663015]
[1673887117379,269.10481477,23.137,23.124,55.45665396]
[1673887117585,269.10481477,23.137,23.124,79.39062093]
[1673887118022,269.10481477,23.137,23.124,124.08777452]
[1673887118553,32.82738473,23.125,23.124,108.59846615]
[1673887119072,32.82738473,23.125,23.124,149.82052935]
[1673887119391,32.82738473,23.125,23.124,43.44647396]
[1673887120001,10.82738473,23.125,23.124,43.44647396]
[1673887120225,10.82738473,23.125,23.124,104.4366137]
[1673887120734,10.82738473,23.125,23.124,98.93514385]
[1673887121370,10.82738473,23.125,23.124,162.18514385]
[1673887121591,10.82738473,23.125,23.124,202.23194704]
[1673887122019,10.82738473,23.125,23.124,200.79531689]
[1673887122351,10.82738473,23.125,23.124,199.23194704]
[1673887122651,528.15943477,23.134,23.125,20.0]
[1673887122969,528.15943477,23.134,23.13,133.74004357]
[1673887123155,528.15943477,23.134,23.133,133.74004357]
[1673887123366,528.15943477,23.134,23.133,4.98787]
[1673887123592,528.15943477,23.134,23.133,86.60993959]
[1673887123796,528.15943477,23.134,23.133,106.62739994]
[1673887124640,528.15943477,23.134,23.133,50.61969994]
[1673887124955,20.0,23.133,23.128,133.5764853]
[1673887125162,528.15943477,23.134,23.127,133.5764853]
[1673887125351,528.15943477,23.134,23.129,69.0459453]
[1673887125566,528.15943477,23.134,23.13,4.98852]
[1673887125777,528.15943477,23.134,23.133,133.5764853]
[1673887125988,528.15943477,23.134,23.131,65.98236035]
[1673887126219,506.15943477,23.134,23.133,65.98236035]
[1673887126429,309.75578322,23.134,23.133,87.97023035]
[1673887126652,235.79626778,23.134,23.133,178.176183]
[1673887126864,214.61620521,23.134,23.133,178.176183]
[1673887127396,20.90827137,23.134,23.133,105.39024623]
[1673887129709,20.90827137,23.134,23.133,88.39024623]
[1673887129901,20.90827137,23.134,23.133,70.97023035]
[1673887130526,20.90827137,23.134,23.132,266.52952656]
[1673887130527,20.0,23.133,23.132,266.52952656]
[1673887130738,20.90827137,23.134,23.132,266.52952656]
[1673887131611,20.90827137,23.134,23.131,266.52952656]
[1673887131911,20.90827137,23.134,23.131,271.51783656]
[1673887132113,20.90827137,23.134,23.132,4.98809]
[1673887132322,9.90827137,23.134,23.132,4.98809]
[1673887132747,9.90827137,23.134,23.133,20.0]
[1673887132969,9.90827137,23.134,23.133,57.79028278]
[1673887133278,9.90827137,23.134,23.133,55.21029866]
[1673887133473,9.90827137,23.134,23.133,37.79028278]
[1673887134123,9.90827137,23.134,23.133,55.21029866]
[1673887134437,269.10481477,23.137,23.133,55.21029866]
[1673887134633,269.10481477,23.137,23.134,24.98766]
[1673887134959,269.10481477,23.137,23.136,266.99356428]
[1673887135166,269.10481477,23.137,23.136,288.98079428]
[1673887135385,269.10481477,23.137,23.136,323.12932782]
[1673887136116,269.10481477,23.137,23.136,340.5493437]
[1673887137273,210.45449495,23.137,23.136,323.5493437]
[1673887137470,73.94240605,23.137,23.136,289.40081016]
[1673887137676,62.94240605,23.137,23.136,22.40724588]
[1673887139887,62.94240605,23.137,23.134,267.16090172]
[1673887141353,62.94240605,23.137,23.135,17.0]
[1673887142527,62.94240605,23.137,23.136,22.40724588]
[1673887142713,51.94240605,23.137,23.136,39.40724588]
[1673887142924,51.94240605,23.137,23.136,21.98723]
[1673887143893,51.94240605,23.137,23.136,38.4465667]
[1673887144084,8.62239101,23.137,23.136,38.4465667]
[1673887144404,8.62239101,23.137,23.136,129.12273057]
[1673887144736,8.62239101,23.137,23.136,21.98723]
[1673887145467,8.62239101,23.137,23.136,38.4465667]
[1673887146292,8.62239101,23.137,23.136,63.27453829]
[1673887147373,168.98395089,23.142,23.137,25.2389227]
[1673887147572,168.98395089,23.142,23.139,6.39417908]
[1673887147769,168.98395089,23.142,23.14,4.98637]
[1673887147979,168.98395089,23.142,23.14,21.4457067]
[1673887148186,168.98395089,23.142,23.136,267.1793847]
[1673887148518,14.68,23.141,23.136,267.1793847]
[1673887148733,14.68,23.141,23.137,4.17673387]
[1673887149045,168.98395089,23.142,23.137,4.17673387]
[1673887149256,168.98395089,23.142,23.14,133.82246811]
[1673887149657,168.98395089,23.142,23.137,4.17673387]
[1673887150302,168.98395089,23.142,23.138,17.0]
[1673887150701,168.98395089,23.142,23.137,3.387e-05]
[1673887152072,20.0,23.141,23.137,3.387e-05]
[1673887152492,20.0,23.141,23.14,89.514212]
[1673887152711,121.94,23.14,23.12,80.06959484]
[1673887152921,121.94,23.14,23.138,22.37985862]
[1673887153123,20.0,23.139,23.135,22.38667382]
[1673887153333,20.0,23.139,23.13,44.77334764]
[1673887153538,32.44,23.138,23.119,15.55147774]
[1673887154730,20.0,23.137,23.119,15.55147774]
[1673887155117,32.44,23.136,23.119,15.55147774]
[1673887155548,2.35523717,23.137,23.112,5.4297405]
[1673887155769,32.44,23.136,23.112,5.4297405]
[1673887155980,20.0,23.135,23.112,5.4297405]
[1673887156395,20.0,23.133,23.11,5.71794145]
[1673887156602,20.0,23.133,23.111,5.1399554]
[1673887156823,32.44,23.132,23.111,5.1399554]
[1673887157038,20.0,23.131,23.111,5.1399554]
[1673887157446,32.45,23.13,23.111,5.1399554]
[1673887157867,20.0,23.129,23.111,5.1399554]
[1673887158096,20.0,23.129,23.112,17.0]
[1673887158312,32.45,23.128,23.112,17.0]
[1673887158708,32.45,23.128,23.112,32.55147774]
[1673887158913,32.45,23.128,23.113,5.2020256]
[1673887159124,20.0,23.127,23.114,17.0]
[1673887161231,20.0,23.127,23.112,15.55147774]
[1673887161453,20.0,23.125,23.103,116.03618209]
[1673887161771,20.0,23.125,23.103,117.24928563]
[1673887161986,20.0,23.125,23.1,4.20052239]
[1673887161987,32.45,23.124,23.105,72.54983452]
[1673887162202,32.45,23.124,23.099,15.55147774]
[1673887162509,20.0,23.123,23.102,72.68815033]
[1673887162708,20.0,23.123,23.104,72.03629345]
[1673887162918,32.46,23.122,23.106,72.56648394]
[1673887163115,20.0,23.121,23.101,72.219039]
[1673887163331,20.0,23.121,23.101,73.43224757]
[1673887163540,32.46,23.12,23.102,37.10691728]
[1673887163771,32.46,23.12,23.104,72.03629345]
[1673887163961,32.46,23.12,23.105,1.21299852]
[1673887164166,32.46,23.12,23.103,72.78618209]
[1673887164400,32.46,23.12,23.104,17.0]
[1673887164613,32.46,23.12,23.105,72.54983452]
[1673887164821,32.46,23.12,23.104,20.0]
[1673887165015,32.46,23.12,23.105,72.54983452]
[1673887165227,32.46,23.123,23.105,78.32054428]
[1673887165436,20.0,23.122,23.105,72.54983452]
[1673887165754,20.0,23.122,23.103,72.78618209]
[1673887165963,20.0,23.122,23.102,58.42984073]
[1673887165964,32.46,23.121,23.105,72.54983452]
[1673887166175,32.46,23.121,23.103,72.78618209]
[1673887166385,32.46,23.121,23.105,72.54983452]
[1673887166609,32.46,23.123,23.107,78.35471221]
[1673887166821,111.0879,23.124,23.108,24.37517263]
[1673887167864,111.0879,23.124,23.108,17.0]
[1673887168081,52.46,23.123,23.107,17.0]
[1673887168293,52.46,23.123,23.106,17.0]
[1673887169036,32.46,23.123,23.106,32.55147774]
[1673887169247,111.0879,23.124,23.108,20.0]
[1673887169437,111.0879,23.124,23.109,17.0]
[1673887169875,111.0879,23.124,23.108,17.0]
[1673887175009,32.44,23.132,23.108,24.96253319]
[1673887175426,32.44,23.132,23.11,7.6006485]
[1673887175643,32.44,23.132,23.112,20.0]
[1673887175863,32.44,23.132,23.113,17.0]
[1673887176075,52.44,23.133,23.113,32.55147774]
[1673887176394,32.45,23.131,23.114,7.58427614]
[1673887176579,32.44,23.132,23.115,17.0]
[1673887177025,20.0,23.131,23.114,7.58427614]
[1673887177227,20.0,23.131,23.11,4.06039418]
[1673887177755,20.0,23.131,23.11,19.61187192]
[1673887178933,20.0,23.131,23.111,17.0]
[1673887179122,20.0,23.131,23.111,22.3247064]
[1673887180064,32.44,23.132,23.112,15.55147774]
[1673887180405,20.0,23.135,23.114,4.42194116]
[1673887180618,20.0,23.135,23.115,17.0]
[1673887180807,20.0,23.135,23.115,32.55147774]
[1673887181012,20.0,23.135,23.116,21.99772313]
[1673887181222,34.79523717,23.137,23.117,21.56711169]
[1673887181433,34.79523717,23.137,23.117,32.55147774]
[1673887181663,34.79523717,23.137,23.118,5.4843676]
[1673887181972,34.79523717,23.137,23.119,17.0]
[1673887182701,2.35523717,23.137,23.119,17.0]
[1673887183124,2.35523717,23.137,23.12,15.55147774]
[1673887183346,2.35523717,23.137,23.121,17.0]
[1673887183658,2.35523717,23.137,23.121,22.63931525]
[1673887185445,2.35523717,23.137,23.121,5.63931525]
[1673887185643,2.35523717,23.137,23.114,269.1817]
[1673887185644,32.44,23.136,23.115,7.27802638]
[1673887185965,20.0,23.135,23.115,7.27802638]
[1673887186923,20.0,23.135,23.116,17.0]
[1673887187134,20.0,23.135,23.115,7.27802638]
[1673887187318,32.44,23.134,23.107,4.85423481]
[1673887187528,32.44,23.134,23.11,15.55147774]
[1673887187769,20.0,23.133,23.11,15.55147774]
[1673887188279,20.0,23.131,23.11,15.55147774]
[1673887188472,20.0,23.131,23.111,24.45950489]
[1673887188913,20.0,23.131,23.112,22.47885373]
[1673887189124,20.0,23.131,23.113,17.0]
[1673887190785,20.0,23.131,23.107,170.12007774]
[1673887191000,32.45,23.13,23.108,5.56300153]
[1673887191219,20.0,23.129,23.108,5.56300153]
[1673887191646,20.0,23.127,23.108,5.56300153]
[1673887191847,20.0,23.127,23.101,188.836839]
[1673887192060,20.0,23.125,23.102,5.26782707]
[1673887192697,20.0,23.123,23.102,5.26782707]
[1673887192893,20.0,23.123,23.103,15.55147774]
[1673887193320,20.0,23.123,23.104,17.0]
[1673887193723,20.0,23.123,23.104,32.55147774]
[1673887194167,20.0,23.123,23.101,122.5639287]
[1673887194376,20.0,23.123,23.102,15.55147774]
[1673887194900,32.46,23.122,23.102,15.55147774]
[1673887195529,32.46,23.122,23.102,19.93582705]
[1673887195745,32.46,23.122,23.102,15.55147774]
[1673887195938,32.46,23.122,23.101,116.6178]
[1673887196158,32.46,23.122,23.102,15.55147774]
[1673887197527,32.46,23.122,23.103,17.0]
[1673887197926,32.46,23.122,23.103,32.55147774]
[1673887198474,32.46,23.122,23.103,17.0]
[1673887200774,32.46,23.122,23.103,32.55147774]
[1673887201938,32.46,23.122,23.103,17.0]
[1673887202160,32.46,23.122,23.099,4.37439361]
[1673887202795,32.46,23.122,23.1,15.55147774]
[1673887203314,32.46,23.122,23.101,17.0]
[1673887203517,32.46,23.122,23.101,134.4004]
[1673887203734,32.46,23.122,23.102,15.55147774]
[1673887203952,32.46,23.122,23.103,17.0]
[1673887204489,32.46,23.122,23.103,32.55147774]
[1673887204668,32.46,23.122,23.103,15.55147774]
[1673887204884,32.46,23.122,23.096,72.99600176]
[1673887205845,32.46,23.122,23.095,72.77599441]
[1673887206062,20.0,23.121,23.096,79.47606715]
[1673887206251,20.0,23.121,23.097,15.55147774]
[1673887206465,32.46,23.12,23.097,15.55147774]
[1673887206889,20.0,23.119,23.097,15.55147774]
[1673887207318,32.46,23.118,23.097,15.55147774]
[1673887207528,32.46,23.118,23.098,17.0]
[1673887207850,20.0,23.117,23.098,17.0]
[1673887208249,20.0,23.115,23.096,15.55147774]
[1673887208459,20.0,23.115,23.089,78.6523809]
[1673887208669,20.0,23.113,23.091,87.65453763]
[1673887209207,32.47,23.112,23.092,72.67846902]
[1673887209422,49.47,23.112,23.091,72.10305989]
[1673887209830,20.0,23.111,23.089,72.49264379]
[1673887210045,20.0,23.111,23.089,73.70648292]
[1673887210368,32.47,23.11,23.091,72.10305989]
[1673887210562,32.47,23.11,23.089,72.49264379]
[1673887210772,20.0,23.109,23.091,72.10305989]
[1673887210974,20.0,23.109,23.088,131.10437774]
[1673887210975,20.0,23.109,23.089,72.49264379]
[1673887211190,20.0,23.109,23.091,72.10305989]
[1673887211191,32.48,23.108,23.091,72.10305989]
[1673887211400,32.48,23.108,23.089,72.49264379]
[1673887211630,32.48,23.108,23.091,72.10305989]
[1673887212469,32.48,23.108,23.08,72.37771405]
[1673887212660,32.48,23.108,23.09,72.00454154]
[1673887212873,32.48,23.108,23.092,72.67846902]
[1673887213082,32.48,23.108,23.086,72.86842396]
[1673887213307,32.48,23.108,23.087,1.21394429]
[1673887213515,32.48,23.108,23.088,72.58220174]
[1673887213740,32.48,23.108,23.09,72.00454154]
[1673887213922,32.48,23.108,23.089,18.21383913]
[1673887213923,32.48,23.108,23.091,89.10305989]
[1673887214133,32.48,23.108,23.09,73.2183281]
[1673887214344,17.0,23.107,23.086,72.86842396]
[1673887214561,17.0,23.107,23.088,72.58220174]
[1673887214771,20.0,23.105,23.088,72.58220174]
[1673887214993,17.0,23.104,23.09,72.00454154]
[1673887215317,17.0,23.104,23.071,72.69887133]
[1673887215318,49.48,23.104,23.071,72.69887133]
[1673887215514,49.48,23.104,23.07,6.74739216]
[1673887215515,49.48,23.104,23.078,72.78636791]
[1673887215715,20.0,23.103,23.08,72.37771405]
[1673887215921,20.0,23.103,23.081,1.21425987]
[1673887216139,32.49,23.102,23.082,72.39283252]
[1673887216348,37.0,23.101,23.084,72.49002939]
[1673887216670,37.0,23.101,23.086,72.86842396]
[1673887216879,37.0,23.101,23.079,15.55147774]
[1673887216880,32.49,23.1,23.088,72.58220174]
[1673887217100,32.49,23.1,23.09,72.00454154]
[1673887217284,20.0,23.099,23.08,72.37771405]
[1673887217492,20.0,23.099,23.081,1.21425987]
[1673887217718,49.49,23.098,23.082,72.39283252]
[1673887217942,20.0,23.097,23.084,72.49002939]
[1673887218129,20.0,23.097,23.086,72.86842396]
[1673887218340,32.49,23.096,23.087,1.21394429]
[1673887218549,32.49,23.096,23.086,1.21389171]
[1673887218792,20.0,23.095,23.052,5.91054447]
[1673887219104,4.99359,23.094,23.053,7.5591994]
[1673887219310,17.0,23.093,23.052,109.2427]
[1673887219531,24.99359,23.092,23.053,4.8419738]
[1673887219710,21.99359,23.091,23.053,4.8419738]
[1673887219922,40.0,23.09,23.053,14.7279738]
[1673887220141,17.0,23.089,23.053,14.7279738]
[1673887220466,4.99359,23.088,23.052,109.2427]
[1673887220676,20.0,23.086,23.052,109.2427]
[1673887220881,136.7102,23.085,23.052,109.2427]
[1673887221080,169.2202,23.085,23.052,109.2427]
[1673887221297,20.0,23.084,23.052,109.2427]
[1673887221501,17.0,23.083,23.042,11.52916394]
[1673887221737,20.0,23.082,23.045,4.27849274]
[1673887221947,17.0,23.081,23.047,20.0]
[1673887222161,15.52,23.081,23.047,25.90597976]
[1673887222464,32.52,23.081,23.049,6.25657755]
[1673887222789,32.51,23.084,23.051,27.71424404]
[1673887223096,119.7102,23.085,23.051,27.71424404]
[1673887223097,32.52,23.08,23.053,7.9955225]
[1673887223416,20.0,23.082,23.054,17.0]
[1673887223609,32.52,23.079,23.054,17.0]
[1673887223823,32.52,23.081,23.054,17.0]
[1673887224151,32.52,23.078,23.054,17.0]
[1673887224354,32.52,23.08,23.046,5.09251901]
[1673887224561,32.52,23.077,23.048,20.07196537]
[1673887224782,32.52,23.081,23.079,37.72272173]
[1673887225098,32.51,23.083,23.079,37.72272173]
[1673887225300,32.52,23.08,23.079,37.72272173]
[1673887225504,32.51,23.082,23.079,37.72272173]
[1673887225715,32.51,23.087,23.079,37.72272173]
[1673887225928,32.52,23.081,23.079,0.00272173]
[1673887226140,37.0,23.08,23.05,20.0]
[1673887226339,20.0,23.078,23.049,134.5453]
[1673887226549,20.0,23.078,23.049,114.5453]
[1673887226757,49.52,23.077,23.04,20.85]
[1673887226967,20.0,23.075,23.04,43.25]
[1673887227177,21.99359,23.074,23.041,4.92656266]
[1673887227398,37.0,23.073,23.043,20.0]
[1673887227601,147.3647,23.073,23.043,20.0]
[1673887227818,20.0,23.071,23.043,20.0]
[1673887228021,17.0,23.07,23.043,20.0]
[1673887228233,32.53,23.07,23.043,20.0]
[1673887228880,32.53,23.072,23.044,111.1929]
[1673887229068,32.53,23.069,23.046,4.05530892]
[1673887229282,32.53,23.071,23.046,4.05530892]
[1673887229496,32.52,23.079,23.046,21.05530892]
[1673887229711,142.8747,23.083,23.048,24.99584584]
[1673887229914,142.8747,23.083,23.05,7.92659554]
[1673887230128,142.8747,23.083,23.052,4.48185807]
[1673887230330,142.8747,23.083,23.054,5.23297025]
[1673887230541,142.8747,23.083,23.055,20.0]
[1673887230771,142.8747,23.083,23.056,17.0]
[1673887230984,142.8747,23.083,23.057,20.0]
[1673887231177,142.8747,23.083,23.058,17.0]
[1673887231599,110.3647,23.083,23.059,20.0]
[1673887231817,32.51,23.087,23.06,21.17661474]
[1673887232026,148.6086,23.093,23.062,6.32919635]
[1673887232241,116.1086,23.093,23.063,17.0]
[1673887232463,32.5,23.092,23.065,5.87044011]
[1673887232674,32.5,23.095,23.066,17.0]
[1673887232993,32.49,23.096,23.067,11.80035402]
[1673887233207,148.5986,23.098,23.069,20.0]
[1673887233392,148.5986,23.098,23.07,23.87458149]
[1673887233609,116.1086,23.098,23.071,20.0]
[1673887233936,116.1086,23.098,23.072,17.0]
[1673887234145,116.1086,23.098,23.073,20.0]
[1673887234363,49.49,23.097,23.074,17.0]
[1673887234557,20.0,23.096,23.074,17.0]
[1673887234969,20.0,23.094,23.074,17.0]
[1673887235518,32.5,23.093,23.074,17.0]
[1673887235707,32.5,23.094,23.074,17.0]
[1673887235924,32.49,23.102,23.075,20.0]
[1673887236140,145.7034,23.108,23.077,6.83790997]
[1673887236338,20.0,23.107,23.078,37.0]
[1673887236549,20.0,23.107,23.079,6.71697352]
[1673887236755,20.0,23.105,23.08,17.0]
[1673887236977,20.0,23.105,23.078,17.0]
[1673887237188,20.0,23.103,23.077,17.0]
[1673887237620,20.0,23.101,23.077,17.0]
[1673887237929,20.0,23.101,23.076,113.5298]
[1673887238130,49.49,23.1,23.076,113.5298]
[1673887238338,20.0,23.099,23.076,113.5298]
[1673887238794,32.49,23.098,23.076,113.5298]
[1673887239383,17.0,23.097,23.065,32.54]
[1673887239617,20.0,23.096,23.065,112.1706]
[1673887239816,17.0,23.095,23.065,112.1706]
[1673887240034,38.46196354,23.095,23.065,112.1706]
[1673887240221,53.96196354,23.094,23.065,112.1706]
[1673887240431,17.0,23.093,23.065,112.1706]
[1673887240647,20.0,23.092,23.065,112.1706]
[1673887240875,20.0,23.092,23.061,20.06384337]
[1673887240876,17.0,23.091,23.061,20.06384337]
[1673887241089,20.0,23.089,23.061,20.06384337]
[1673887241398,20.0,23.089,23.063,20.06368578]
[1673887241605,32.51,23.088,23.063,20.06368578]
[1673887242009,32.51,23.088,23.061,20.06384337]
[1673887242443,20.0,23.087,23.061,20.06384337]
[1673887242975,32.51,23.086,23.061,20.06384337]
[1673887243382,32.51,23.086,23.063,17.0]
[1673887243705,32.51,23.086,23.061,20.06384337]
[1673887244960,32.51,23.088,23.063,17.0]
[1673887245160,32.5,23.091,23.063,49.54]
[1673887245370,20.0,23.093,23.063,49.54]
[1673887245371,32.5,23.092,23.064,20.0]
[1673887245584,32.5,23.09,23.065,17.0]
[1673887245808,20.0,23.09,23.065,17.0]
[1673887246024,20.0,23.09,23.065,49.54]
[1673887246219,52.5,23.09,23.065,49.54]
[1673887246431,20.0,23.09,23.065,17.0]
[1673887246634,20.0,23.09,23.064,17.0]
[1673887246973,52.5,23.09,23.065,20.0636154]
[1673887247191,20.0,23.09,23.066,17.0]
[1673887247498,20.0,23.09,23.064,17.0]
[1673887247695,52.5,23.09,23.065,32.54]
[1673887248020,20.0,23.09,23.066,37.06350046]
[1673887248213,32.5,23.089,23.066,17.0]
[1673887248554,20.0,23.088,23.066,17.0]
[1673887249276,20.0,23.088,23.063,32.54]
[1673887249488,20.0,23.088,23.062,113.2189]
[1673887249704,20.0,23.088,23.062,145.7589]
[1673887249910,20.0,23.088,23.063,64.59685441]
[1673887250104,32.51,23.087,23.063,64.59685441]
[1673887250314,17.0,23.086,23.062,145.7589]
[1673887250528,20.0,23.085,23.062,113.2189]
[1673887250747,17.0,23.084,23.062,113.2189]
[1673887250953,17.0,23.084,23.061,20.06384337]
[1673887250954,20.0,23.083,23.061,20.06384337]
[1673887251161,52.51,23.083,23.061,20.06384337]
[1673887251374,17.0,23.082,23.061,20.06384337]
[1673887251587,117.3933,23.087,23.061,20.06384337]
[1673887251911,117.3933,23.087,23.062,97.13808129]
[1673887252103,117.3933,23.087,23.062,148.5792]
[1673887252315,20.0,23.085,23.063,17.0]
[1673887252540,117.3933,23.087,23.064,20.0]
[1673887252737,117.3933,23.087,23.065,17.0]
[1673887253582,20.0,23.086,23.065,17.0]
[1673887253818,20.0,23.086,23.063,32.54]
[1673887253819,20.0,23.086,23.064,17.0]
[1673887254517,1.21389171,23.085,23.063,17.0]
[1673887255776,1.21389171,23.085,23.062,148.5792]
[1673887255986,1.21389171,23.085,23.062,116.0392]
[1673887255987,20.0,23.083,23.062,116.0392]
[1673887256196,1.21389171,23.082,23.062,116.0392]
[1673887256414,20.0,23.081,23.062,116.0392]
[1673887256731,1.21389171,23.08,23.061,20.06384337]
[1673887257063,72.19585525,23.08,23.061,20.06384337]
[1673887257269,20.0,23.078,23.061,20.06384337]